fUSD/lending_fUSD_20250128
["ID","MTS","AMOUNT","RATE_DAILY","PERIOD"]
[350669594,1738049432676,-302.05,0.00019799,2]
[350669596,1738049432686,-500.0,0.00019799,2]
[350669598,1738049432695,-500.0,0.00019799,2]
[350669600,1738049432706,-500.0,0.00019799,2]
[350669602,1738049432716,-418.76,0.00019799,2]
[350669604,1738049432726,-500.0,0.00019799,2]
[350669606,1738049432736,-500.0,0.00019799,2]
[350669608,1738049432746,-500.0,0.00019799,2]
[350669610,1738049432756,-500.0,0.00019799,2]
[350669612,1738049432766,-500.0,0.00019799,2]
[350669614,1738049432778,-500.0,0.00019799,2]
[350669616,1738049432788,-500.0,0.00019799,2]
[350669618,1738049432798,-43.41035442,0.00019799,2]
[350669621,1738049432812,-313.71872991,0.00019799,2]
[350669706,1738049437560,-444.81464099,0.00019644,2]
[350669707,1738049437870,-826.18535901,0.00019644,2]
[350669708,1738049437880,-142.87091567,0.00019799,2]
[350669709,1738049437891,-531.68129595,0.00019799,2]
[350669710,1738049437901,-500.0,0.00019799,2]
[350669711,1738049437910,-500.0,0.00019799,2]
[350669712,1738049437920,-500.0,0.00019799,2]
[350669713,1738049437930,-500.0,0.00019799,2]
[350669714,1738049437940,-105.78716123,0.00019799,2]
[350669722,1738049439586,-321.5919,0.00019644,2]
[350669723,1738049439791,-1792.4211,0.00019644,2]
[350669724,1738049439801,-394.21283877,0.00019799,2]
[350669725,1738049439811,-500.0,0.00019799,2]
[350669726,1738049439821,-500.0,0.00019799,2]
[350669727,1738049439831,-348.95066778,0.00019799,2]
[350669728,1738049439841,-500.0,0.00019799,2]
[350669729,1738049439850,-176.26285101,0.00019799,2]
[350669730,1738049440074,-8670.39213941,0.000198,2]
[350669731,1738049440098,-500.0,0.00019799,2]
[350669732,1738049440108,-181755.87390557,0.000198,2]
[350669733,1738049440119,-285.09196373,0.000198,2]
[350669734,1738049440130,-678.849985,0.000198,2]
[350669735,1738049440141,-4719.70436106,0.000198,2]
[350669736,1738049440152,-1487.7494256,0.000198,2]
[350669737,1738049440163,-516.45,0.000198,2]
[350669765,1738049443686,-315.02284598,0.00019799,2]
[350669766,1738049443695,-500.0,0.00019799,2]
[350669767,1738049443704,-2918.56165379,0.000198,2]
[350669768,1738049443716,-536.31402812,0.000198,2]
[350669769,1738049443729,-98281.66732451,0.000198,2]
[350669770,1738049443848,-501.417,0.000198,2]
[350669776,1738049445757,-311.13376032,0.00019644,2]
[350669777,1738049445769,-326.86623968,0.00019644,2]
[350669778,1738049445779,-533.42507629,0.00019799,2]
[350669779,1738049445789,-19835.49191199,0.000198,2]
[350669780,1738049445871,-432.66409938,0.000198,2]
[350669781,1738049445903,-912.06260629,0.000198,2]
[350669785,1738049502867,151.171379,0.00010958,2]
[350670045,1738049897312,200.0,0.00023,120]
[350670062,1738049945969,162.88,0.00010137,2]
[350670176,1738050631804,-656.89,0.00016761,2]
[350670177,1738050631815,-150.0,0.00016774,2]
[350670178,1738050631825,-162.88,0.00016813,2]
[350670179,1738050631836,-150.0,0.00017292,2]
[350670180,1738050631846,-301.74808778,0.00018271,2]
[350670181,1738050631856,-301.74808776,0.00018304,2]
[350670182,1738050631865,-707.6,0.00018341,2]
[350670183,1738050631875,-297.35,0.00018344,2]
[350670184,1738050631884,-342.63,0.00018371,2]
[350670185,1738050631894,-792.34,0.00018404,2]
[350670186,1738050631903,-150.0,0.00018437,2]
[350670187,1738050631913,-150.0,0.00018466,2]
[350670188,1738050631923,-1000.0,0.00018566,2]
[350670189,1738050631932,-182.64,0.0001859,30]
[350670190,1738050631942,-542.0,0.00018603,2]
[350670191,1738050631951,-322.22,0.00018678,2]
[350670192,1738050631961,-1563.984,0.00018707,2]
[350670193,1738050631972,-689.14047719,0.00018721,2]
[350670194,1738050631987,-424.9353866,0.00018721,2]
[350670195,1738050631999,-351.31413621,0.00018721,2]
[350670196,1738050632009,-87.21686345,0.00018728,2]
[350670197,1738050632127,-871.32746013,0.00018728,2]
[350670198,1738050632139,-1029.7,0.00018728,2]
[350670512,1738050637678,-1339.73119665,0.00018728,2]
[350670513,1738050637757,-2458.54477801,0.00018728,2]
[350670514,1738050637768,-480.66,0.00018859,2]
[350670515,1738050637778,-656.89,0.00019024,2]
[350670516,1738050637787,-150.0,0.00019178,2]
[350670517,1738050637797,-438.99,0.00019233,2]
[350670518,1738050637807,-773.96,0.00019233,2]
[350670519,1738050637817,-773.96,0.00019233,2]
[350670520,1738050637827,-772.64,0.00019233,2]
[350670521,1738050637836,-438.99,0.00019233,2]
[350670522,1738050637849,-438.99,0.00019233,2]
[350670523,1738050637859,-438.99,0.00019233,2]
[350670524,1738050637868,-150.0,0.00019291,2]
[350670525,1738050637877,-648.01,0.00019292,7]
[350670526,1738050637887,-648.01,0.00019292,7]
[350670527,1738050637897,-648.01,0.00019292,7]
[350670528,1738050637906,-648.01,0.00019292,7]
[350670529,1738050637916,-792.34,0.00019324,2]
[350670530,1738050637926,-1465.39,0.00019414,2]
[350670531,1738050637936,-648.01,0.00019566,7]
[350670532,1738050637945,-648.01,0.00019566,7]
[350670533,1738050637955,-1678.0,0.00019581,2]
[350670534,1738050637965,-1137.8977069,0.00019599,2]
[350670535,1738050637975,-773.77,0.00019642,2]
[350670536,1738050637985,-773.96,0.00019642,2]
[350670537,1738050637994,-876.51,0.00019642,2]
[350670538,1738050638004,-877.74,0.00019642,2]
[350670539,1738050638013,-773.96,0.00019642,2]
[350670540,1738050638023,-150.0,0.00019683,2]
[350670541,1738050638032,-160.38771408,0.00019699,2]
[350670542,1738050638042,-793.8921,0.000197,2]
[350670543,1738050638051,-13469.0108,0.000197,2]
[350670544,1738050638061,-500.0,0.000197,2]
[350670545,1738050638071,-1351.12591829,0.000197,2]
[350670546,1738050638087,-3648.87408171,0.000197,2]
[350670547,1738050638099,-159.99336566,0.000197,2]
[350670548,1738050638108,-160.38771399,0.00019721,2]
[350670549,1738050638118,-1229.45654404,0.0001973,2]
[350670550,1738050638130,-457.39448109,0.0001973,2]
[350670551,1738050638139,-159.99336566,0.00019733,2]
[350670552,1738050638148,-160.38771399,0.00019744,2]
[350670553,1738050638158,-160.38771399,0.00019766,2]
[350670554,1738050638168,-159.99336566,0.00019767,2]
[350670555,1738050638177,-1678.0,0.00019783,2]
[350670556,1738050638187,-160.38771399,0.00019788,2]
[350670557,1738050638197,-2549.57636869,0.00019789,2]
[350670569,1738050639919,-1446.4219065,0.00019789,2]
[350670570,1738050639932,-604.03745744,0.00019789,2]
[350670593,1738050642722,-389.999951,0.00019789,2]
[350670604,1738050645787,-353.93241629,0.00019699,2]
[350670605,1738050645799,-432.66409938,0.00019699,2]
[350670606,1738050645827,-4135.74629816,0.00019699,2]
[350670607,1738050645905,-756.72478617,0.00019699,2]
[350670608,1738050645915,-1655.89431637,0.00019789,2]
[350670609,1738050645924,-444.33742365,0.00019798,2]
[350670610,1738050645933,-508.34281601,0.00019798,2]
[350670611,1738050645942,-500.0,0.00019798,2]
[350670612,1738050645951,-500.0,0.00019798,2]
[350670613,1738050645961,-500.0,0.00019798,2]
[350670614,1738050645970,-430.44612706,0.00019798,2]
[350670615,1738050645979,-500.0,0.00019798,2]
[350670616,1738050645988,-500.0,0.00019798,2]
[350670617,1738050645997,-500.0,0.00019798,2]
[350670618,1738050646007,-500.0,0.00019798,2]
[350670619,1738050646016,-348.11809429,0.00019798,2]
[350670620,1738050646025,-500.0,0.00019798,2]
[350670621,1738050646034,-500.0,0.00019798,2]
[350670622,1738050646043,-500.0,0.00019798,2]
[350670623,1738050646053,-500.0,0.00019798,2]
[350670624,1738050646063,-500.0,0.00019798,2]
[350670625,1738050646072,-500.0,0.00019798,2]
[350670626,1738050646081,-500.0,0.00019798,2]
[350670627,1738050646090,-500.0,0.00019798,2]
[350670628,1738050646099,-500.0,0.00019798,2]
[350670629,1738050646108,-609.70328923,0.00019798,2]
[350670630,1738050646117,-500.0,0.00019798,2]
[350670631,1738050646126,-500.0,0.00019798,2]
[350670632,1738050646136,-500.0,0.00019798,2]
[350670633,1738050646145,-500.0,0.00019798,2]
[350670634,1738050646154,-500.0,0.00019798,2]
[350670635,1738050646163,-500.0,0.00019798,2]
[350670636,1738050646172,-500.0,0.00019798,2]
[350670637,1738050646182,-500.0,0.00019798,2]
[350670638,1738050646191,-554.88146492,0.00019798,2]
[350670639,1738050646200,-574.89374553,0.00019798,2]
[350670640,1738050646209,-500.0,0.00019798,2]
[350670641,1738050646218,-584.89374138,0.00019798,2]
[350670643,1738050646227,-500.0,0.00019798,2]
[350670644,1738050646236,-500.0,0.00019798,2]
[350670646,1738050646245,-500.0,0.00019798,2]
[350670647,1738050646254,-496.11340147,0.00019798,2]
[350670648,1738050646266,-33.89287663,0.00019798,2]
[350670649,1738050646275,-500.0,0.00019798,2]
[350670650,1738050646283,-500.0,0.00019798,2]
[350670651,1738050646292,-528.39464298,0.00019798,2]
[350670652,1738050646301,-500.0,0.00019798,2]
[350670653,1738050646310,-307.71248039,0.00019798,2]
[350670654,1738050646321,-192.28751961,0.00019798,2]
[350670655,1738050646330,-219.71248039,0.00019798,2]
[350670656,1738050646360,-280.28751961,0.00019798,2]
[350670657,1738050646370,-514.27626566,0.00019798,2]
[350670658,1738050646379,-621.55635139,0.00019798,2]
[350670659,1738050646388,-507.93702231,0.00019798,2]
[350670660,1738050646397,-500.0,0.00019798,2]
[350670661,1738050646407,-500.0,0.00019798,2]
[350670662,1738050646416,-519.05738181,0.00019798,2]
[350670663,1738050646425,-500.0,0.00019798,2]
[350670664,1738050646434,-500.0,0.00019798,2]
[350670665,1738050646443,-500.0,0.00019798,2]
[350670666,1738050646453,-500.0,0.00019798,2]
[350670667,1738050646462,-467.33537906,0.00019798,2]
[350670668,1738050646471,-500.0,0.00019798,2]
[350670669,1738050646479,-500.0,0.00019798,2]
[350670670,1738050646488,-416.4511271,0.00019798,2]
[350670671,1738050646497,-602.74,0.00019798,2]
[350670672,1738050646506,-507.82197312,0.00019798,2]
[350670673,1738050646515,-500.0,0.00019798,2]
[350670674,1738050646525,-507.00764218,0.00019798,2]
[350670675,1738050646534,-339.47469611,0.00019798,2]
[350670676,1738050646543,-500.0,0.00019798,2]
[350670677,1738050646552,-500.0,0.00019798,2]
[350670678,1738050646562,-334.8019307,0.00019798,2]
[350670679,1738050646574,-500.0,0.00019798,2]
[350670680,1738050646583,-500.0,0.00019798,2]
[350670681,1738050646592,-470.0,0.00019798,2]
[350670682,1738050646601,-500.0,0.00019798,2]
[350670683,1738050646612,-500.0,0.00019798,2]
[350670684,1738050646621,-500.0,0.00019798,2]
[350670685,1738050646630,-500.0,0.00019798,2]
[350670686,1738050646639,-509.45,0.00019798,2]
[350670687,1738050646650,-500.0,0.00019798,2]
[350670688,1738050646659,-541.19508409,0.00019798,2]
[350670689,1738050646668,-500.0,0.00019798,2]
[350670690,1738050646677,-500.0,0.00019798,2]
[350670691,1738050646686,-500.0,0.00019798,2]
[350670692,1738050646696,-283.21,0.00019798,2]
[350670693,1738050646705,-500.0,0.00019798,2]
[350670694,1738050646714,-500.0,0.00019798,2]
[350670695,1738050646723,-514.36508751,0.00019798,2]
[350670696,1738050646732,-500.0,0.00019798,2]
[350670697,1738050646742,-500.0,0.00019798,2]
[350670698,1738050646751,-500.0,0.00019798,2]
[350670699,1738050646761,-500.0,0.00019798,2]
[350670700,1738050646771,-500.0,0.00019798,2]
[350670701,1738050646781,-541.10112775,0.00019798,2]
[350670702,1738050646790,-500.0,0.00019798,2]
[350670703,1738050646799,-500.0,0.00019798,2]
[350670704,1738050646808,-500.0,0.00019798,2]
[350670705,1738050646817,-500.0,0.00019798,2]
[350670706,1738050646826,-500.0,0.00019798,2]
[350670707,1738050646835,-500.0,0.00019798,2]
[350670708,1738050646844,-500.0,0.00019798,2]
[350670709,1738050646856,-545.92293158,0.00019798,2]
[350670710,1738050646864,-500.0,0.00019798,2]
[350670711,1738050646872,-500.0,0.00019798,2]
[350670712,1738050646882,-500.0,0.00019798,2]
[350670713,1738050646891,-500.0,0.00019798,2]
[350670714,1738050646900,-538.36755083,0.00019798,2]
[350670715,1738050646909,-310.10336702,0.00019798,2]
[350670716,1738050646920,-500.0,0.00019798,2]
[350670717,1738050646935,-500.0,0.00019798,2]
[350670718,1738050646944,-507.88604878,0.00019799,2]
[350670719,1738050646954,-500.0,0.00019799,2]
[350670720,1738050646963,-500.0,0.00019799,2]
[350670721,1738050647145,-500.0,0.00019799,2]
[350670722,1738050647155,-500.0,0.00019799,2]
[350670723,1738050647164,-500.0,0.00019799,2]
[350670724,1738050647175,-500.0,0.00019799,2]
[350670725,1738050647192,-500.0,0.00019799,2]
[350670726,1738050647208,-500.0,0.00019799,2]
[350670727,1738050647219,-500.0,0.00019799,2]
[350670728,1738050647228,-500.0,0.00019799,2]
[350670729,1738050647238,-500.0,0.00019799,2]
[350670731,1738050647247,-505.34174421,0.00019799,2]
[350670733,1738050647256,-500.0,0.00019799,2]
[350670735,1738050647266,-500.0,0.00019799,2]
[350670738,1738050647275,-500.0,0.00019799,2]
[350670740,1738050647284,-500.0,0.00019799,2]
[350670742,1738050647293,-500.0,0.00019799,2]
[350670743,1738050647303,-500.0,0.00019799,2]
[350670746,1738050647312,-500.0,0.00019799,2]
[350670748,1738050647321,-500.0,0.00019799,2]
[350670749,1738050647330,-500.0,0.00019799,2]
[350670751,1738050647340,-500.0,0.00019799,2]
[350670753,1738050647350,-500.0,0.00019799,2]
[350670755,1738050647359,-500.0,0.00019799,2]
[350670758,1738050647369,-500.0,0.00019799,2]
[350670760,1738050647378,-504.71910011,0.00019799,2]
[350670761,1738050647388,-500.0,0.00019799,2]
[350670764,1738050647397,-553.17068656,0.00019799,2]
[350670765,1738050647406,-500.0,0.00019799,2]
[350670768,1738050647416,-500.0,0.00019799,2]
[350670770,1738050647425,-500.0,0.00019799,2]
[350670771,1738050647434,-500.0,0.00019799,2]
[350670773,1738050647443,-500.0,0.00019799,2]
[350670776,1738050647452,-636.34325122,0.00019799,2]
[350670777,1738050647461,-500.0,0.00019799,2]
[350670779,1738050647471,-315.16990593,0.00019799,2]
[350670781,1738050647479,-500.0,0.00019799,2]
[350670783,1738050647489,-500.0,0.00019799,2]
[350670786,1738050647498,-500.0,0.00019799,2]
[350670787,1738050647507,-500.0,0.00019799,2]
[350670789,1738050647516,-500.0,0.00019799,2]
[350670791,1738050647525,-500.0,0.00019799,2]
[350670793,1738050647534,-500.0,0.00019799,2]
[350670795,1738050647543,-500.0,0.00019799,2]
[350670797,1738050647552,-500.0,0.00019799,2]
[350670799,1738050647562,-500.0,0.00019799,2]
[350670801,1738050647572,-506.25228839,0.00019799,2]
[350670803,1738050647582,-43.47029226,0.00019799,2]
[350670948,1738050670994,10000.0,0.00016,29]
[350671190,1738051030536,169.69,0.00010137,2]
[350671192,1738051388270,350.0,0.00023,120]
[350671193,1738051445572,200.0,0.0001191,2]
[350671194,1738051445898,200.0,0.00011916,2]
[350671205,1738051831903,-550.0,0.00013,2]
[350671206,1738051831913,-150.0,0.000143,2]
[350671207,1738051831922,-150.0,0.000143,2]
[350671208,1738051831935,-150.0,0.00014558,2]
[350671209,1738051831947,-75.63162863,0.00015,2]
[350671210,1738051831958,-310.529994,0.00015,2]
[350671211,1738051832065,-213.83837737,0.00015,2]
[350671212,1738051832075,-524.69702,0.00015,2]
[350671213,1738051832084,-250.0,0.00016212,2]
[350671214,1738051832093,-169.69,0.00016813,2]
[350671215,1738051832102,-500.0,0.00016822,2]
[350671216,1738051832111,-650.0,0.00017,2]
[350671217,1738051832120,-599.36,0.00017027,2]
[350671218,1738051832129,-3810.0,0.000173,2]
[350671219,1738051832138,-5558.0,0.000176,3]
[350671220,1738051832146,-300.0,0.00017699,2]
[350671221,1738051832155,-6350.9809,0.000178,2]
[350671222,1738051832164,-5558.0,0.00018,5]
[350671223,1738051832173,-418.52,0.00018154,2]
[350671224,1738051832186,-241.73,0.00018189,2]
[350671225,1738051832195,-160.9,0.00018225,2]
[350671226,1738051832203,-670.33,0.00018225,2]
[350671227,1738051832212,-250.0,0.00018288,2]
[350671228,1738051832221,-475.4,0.00018339,2]
[350671229,1738051832230,-173.5,0.00018351,30]
[350671230,1738051832239,-842.55814965,0.0001849,2]
[350671277,1738051837908,-18604.08225035,0.0001849,2]
[350671278,1738051837917,-1000.0,0.0001859,2]
[350671279,1738051837926,-161.11,0.00018825,2]
[350671280,1738051837936,-700.0,0.00019,2]
[350671281,1738051837947,-326.8405854,0.00019,2]
[350671282,1738051837957,-2980.0,0.00019017,2]
[350671283,1738051837966,-300.72,0.00019078,2]
[350671284,1738051837975,-150.0,0.00019178,2]
[350671285,1738051837985,-150.0,0.00019178,2]
[350671286,1738051837994,-475.4,0.00019256,2]
[350671287,1738051838003,-599.36,0.00019291,2]
[350671288,1738051838012,-690.23,0.00019292,7]
[350671289,1738051838021,-690.23,0.00019292,7]
[350671290,1738051838030,-690.23,0.00019292,7]
[350671291,1738051838040,-690.23,0.00019292,7]
[350671292,1738051838049,-420.0,0.00019317,2]
[350671293,1738051838058,-690.23,0.00019566,7]
[350671294,1738051838067,-690.23,0.00019566,7]
[350671295,1738051838077,-1642.0,0.00019581,2]
[350671296,1738051838086,-808.738324,0.0001959,2]
[350671297,1738051838095,-150.0,0.00019683,2]
[350671298,1738051838104,-5907.3915,0.00019697,2]
[350671299,1738051838113,-398.0966,0.00019697,2]
[350671300,1738051838122,-159.99336566,0.00019697,2]
[350671301,1738051838130,-432.6641,0.00019698,2]
[350671302,1738051838139,-696.5949,0.00019698,2]
[350671303,1738051838148,-5000.0,0.00019698,2]
[350671304,1738051838157,-150.78950609,0.00019698,2]
[350671305,1738051838166,-1432.197,0.00019699,2]
[350671306,1738051838175,-1518.16592259,0.0001973,2]
[350671307,1738051838183,-150.0,0.00019752,2]
[350671308,1738051838193,-159.99336566,0.00019765,2]
[350671309,1738051838202,-150.0,0.00019766,2]
[350671310,1738051838211,-178.28623567,0.00019781,4]
[350671311,1738051838219,-150.0,0.00019781,4]
[350671312,1738051838228,-1642.0,0.00019783,2]
[350671313,1738051838237,-500.0,0.00019796,2]
[350671314,1738051838246,-500.0,0.00019796,2]
[350671315,1738051838255,-500.0,0.00019796,2]
[350671316,1738051838264,-500.0,0.00019796,2]
[350671317,1738051838273,-500.0,0.00019796,2]
[350671319,1738051838283,-500.0,0.00019796,2]
[350671321,1738051838294,-500.0,0.00019796,2]
[350671323,1738051838305,-500.0,0.00019796,2]
[350671326,1738051838317,-500.0,0.00019796,2]
[350671328,1738051838329,-500.0,0.00019796,2]
[350671330,1738051838340,-547.21029443,0.00019796,2]
[350671332,1738051838350,-500.0,0.00019796,2]
[350671334,1738051838361,-500.0,0.00019796,2]
[350671336,1738051838371,-500.0,0.00019796,2]
[350671339,1738051838382,-500.0,0.00019796,2]
[350671341,1738051838394,-123912.43862138,0.00019796,2]
[350671345,1738051838418,-19847.4,0.00019796,2]
[350671348,1738051838442,-4705.87331267,0.00019796,2]
[350671374,1738051839856,-315.6626567,0.00019796,2]
[350671375,1738051839869,-2055.8,0.00019796,2]
[350671380,1738051839908,-2161.63959,0.00019796,2]
[350671386,1738051839965,-639.14689537,0.00019796,2]
[350671414,1738051840226,-313.719998,0.00019796,2]
[350671421,1738051840279,-455.78372172,0.00019796,2]
[350671476,1738051843052,-967.62,0.00018919,2]
[350671477,1738051843063,-967.62,0.00019619,2]
[350671478,1738051843074,-118346.25599841,0.00019796,2]
[350671483,1738051844544,199.502514,0.00010958,2]
[350671484,1738051844892,199.502514,0.00011917,2]
[350671485,1738051845244,199.502514,0.00011995,2]
[350671491,1738051845870,-200.0,0.00018132,2]
[350671492,1738051845880,-545840.84313566,0.00019796,2]
[350671493,1738051845890,-360.65373063,0.00019797,2]
[350671494,1738051845900,-518.60080459,0.00019797,2]
[350671495,1738051845910,-500.0,0.00019797,2]
[350671496,1738051845921,-376.48429363,0.00019797,2]
[350671497,1738051845931,-500.0,0.00019797,2]
[350671498,1738051845944,-500.0,0.00019797,2]
[350671499,1738051845958,-500.0,0.00019797,2]
[350671500,1738051845968,-500.0,0.00019797,2]
[350671501,1738051845979,-500.0,0.00019797,2]
[350671502,1738051845989,-500.0,0.00019797,2]
[350671503,1738051845999,-507.76784432,0.00019797,2]
[350671504,1738051846010,-500.0,0.00019797,2]
[350671505,1738051846020,-500.0,0.00019797,2]
[350671506,1738051846030,-500.0,0.00019797,2]
[350671507,1738051846040,-500.0,0.00019797,2]
[350671508,1738051846050,-500.0,0.00019797,2]
[350671509,1738051846060,-500.0,0.00019797,2]
[350671510,1738051846070,-500.0,0.00019797,2]
[350671511,1738051846080,-500.0,0.00019797,2]
[350671512,1738051846090,-500.0,0.00019797,2]
[350671513,1738051846100,-509.25528447,0.00019797,2]
[350671514,1738051846110,-533.24397488,0.00019797,2]
[350671515,1738051846120,-500.0,0.00019797,2]
[350671516,1738051846130,-500.0,0.00019797,2]
[350671517,1738051846141,-500.0,0.00019797,2]
[350671518,1738051846151,-500.0,0.00019797,2]
[350671519,1738051846160,-500.0,0.00019797,2]
[350671520,1738051846170,-509.80863265,0.00019797,2]
[350671521,1738051846180,-500.0,0.00019797,2]
[350671522,1738051846194,-500.0,0.00019797,2]
[350671523,1738051846204,-500.0,0.00019797,2]
[350671524,1738051846214,-500.0,0.00019797,2]
[350671525,1738051846225,-500.0,0.00019797,2]
[350671526,1738051846235,-500.0,0.00019797,2]
[350671527,1738051846245,-500.0,0.00019797,2]
[350671528,1738051846256,-500.0,0.00019797,2]
[350671529,1738051846266,-260.45743529,0.00019797,2]
[350671530,1738051846276,-500.0,0.00019797,2]
[350671531,1738051846286,-500.0,0.00019797,2]
[350671532,1738051846296,-502.92549833,0.00019797,2]
[350671533,1738051846306,-501.3338728,0.00019797,2]
[350671534,1738051846316,-500.0,0.00019797,2]
[350671535,1738051846327,-500.0,0.00019797,2]
[350671536,1738051846337,-500.0,0.00019797,2]
[350671537,1738051846347,-500.0,0.00019797,2]
[350671538,1738051846357,-500.0,0.00019797,2]
[350671539,1738051846367,-500.0,0.00019797,2]
[350671540,1738051846377,-500.0,0.00019797,2]
[350671541,1738051846388,-500.0,0.00019797,2]
[350671542,1738051846398,-500.0,0.00019797,2]
[350671543,1738051846408,-500.0,0.00019797,2]
[350671544,1738051846419,-500.0,0.00019797,2]
[350671545,1738051846430,-500.0,0.00019797,2]
[350671546,1738051846443,-500.0,0.00019797,2]
[350671547,1738051846454,-234.04366756,0.00019797,2]
[350671548,1738051846464,-500.0,0.00019797,2]
[350671549,1738051846474,-500.0,0.00019797,2]
[350671550,1738051846484,-500.0,0.00019797,2]
[350671551,1738051846495,-500.0,0.00019797,2]
[350671552,1738051846504,-500.0,0.00019797,2]
[350671553,1738051846719,-500.0,0.00019797,2]
[350671554,1738051846735,-500.0,0.00019797,2]
[350671555,1738051846747,-500.0,0.00019797,2]
[350671556,1738051846756,-500.0,0.00019797,2]
[350671557,1738051846765,-500.0,0.00019797,2]
[350671558,1738051846774,-500.0,0.00019797,2]
[350671559,1738051846783,-500.0,0.00019797,2]
[350671560,1738051846792,-500.0,0.00019797,2]
[350671561,1738051846802,-500.0,0.00019797,2]
[350671562,1738051846811,-500.0,0.00019797,2]
[350671563,1738051846820,-500.0,0.00019797,2]
[350671564,1738051846829,-500.0,0.00019797,2]
[350671565,1738051846839,-500.0,0.00019797,2]
[350671566,1738051846848,-525.3204661,0.00019797,2]
[350671567,1738051846857,-500.0,0.00019797,2]
[350671568,1738051846867,-500.0,0.00019797,2]
[350671569,1738051846876,-500.0,0.00019797,2]
[350671570,1738051846885,-508.07288978,0.00019797,2]
[350671571,1738051846894,-500.0,0.00019797,2]
[350671572,1738051846903,-500.0,0.00019797,2]
[350671573,1738051846912,-500.0,0.00019797,2]
[350671574,1738051846920,-500.0,0.00019797,2]
[350671575,1738051846929,-393.97527809,0.00019797,2]
[350671576,1738051846943,-500.0,0.00019797,2]
[350671577,1738051846954,-500.0,0.00019797,2]
[350671578,1738051846963,-500.0,0.00019797,2]
[350671579,1738051846972,-500.0,0.00019797,2]
[350671580,1738051846982,-500.0,0.00019797,2]
[350671581,1738051846990,-500.0,0.00019797,2]
[350671582,1738051846999,-500.0,0.00019797,2]
[350671583,1738051847009,-500.0,0.00019797,2]
[350671584,1738051847018,-500.0,0.00019797,2]
[350671585,1738051847027,-500.0,0.00019797,2]
[350671586,1738051847036,-500.0,0.00019797,2]
[350671587,1738051847045,-500.0,0.00019797,2]
[350671588,1738051847054,-500.0,0.00019797,2]
[350671589,1738051847063,-500.0,0.00019797,2]
[350671590,1738051847072,-500.0,0.00019797,2]
[350671591,1738051847081,-500.0,0.00019797,2]
[350671592,1738051847090,-500.0,0.00019797,2]
[350671593,1738051847099,-500.0,0.00019797,2]
[350671594,1738051847108,-500.0,0.00019797,2]
[350671595,1738051847117,-521.98,0.00019797,2]
[350671596,1738051847126,-502.17488852,0.00019797,2]
[350671597,1738051847135,-461.8100956,0.00019797,2]
[350671598,1738051847143,-500.0,0.00019797,2]
[350671599,1738051847152,-500.0,0.00019797,2]
[350671600,1738051847161,-500.0,0.00019797,2]
[350671601,1738051847170,-500.0,0.00019797,2]
[350671602,1738051847179,-500.0,0.00019797,2]
[350671603,1738051847188,-500.0,0.00019797,2]
[350671604,1738051847197,-155.64325022,0.00019797,2]
[350671605,1738051847206,-500.0,0.00019797,2]
[350671606,1738051847215,-500.0,0.00019797,2]